bitfinex-derivatives/quotes_BNBF0:USTF0_20250128
["timestamp","ask_amount","ask_price","bid_price","bid_amount"]
[1738054262476,0.27199905,676.02,675.17,0.29622169]
[1738054262685,1.37454005,676.01,675.17,0.29622169]
[1738054262884,0.27199905,676.0,675.17,0.29622169]
[1738054264986,0.27200096,675.99,675.17,0.29622169]
[1738054265186,0.27200096,675.98,675.17,0.29622169]
[1738054265382,0.27200096,676.0,675.17,0.29622169]
[1738054265588,0.27200096,675.99,675.17,0.29622169]
[1738054265786,0.27200096,676.03,675.17,0.29622169]
[1738054265983,0.27200096,676.02,675.17,0.29622169]
[1738054266187,0.27200096,676.01,675.17,0.29622169]
[1738054266382,0.27200096,676.03,675.17,0.29622169]
[1738054266588,0.27200096,676.02,675.17,0.29622169]
[1738054266982,0.27200096,676.01,675.17,0.29622169]
[1738054267185,0.27200096,676.0,675.17,0.29622169]
[1738054267488,0.27200096,675.99,675.17,0.29622169]
[1738054267685,0.27200096,675.98,675.17,0.29622169]
[1738054267889,0.27200096,675.97,675.17,0.29622169]
[1738054268085,0.27200096,676.03,675.17,0.29622169]
[1738054268392,0.27200096,676.02,675.17,0.29622169]
[1738054268591,0.27200096,676.01,675.17,0.29622169]
[1738054268790,0.27200096,676.03,675.17,0.29622169]
[1738054268985,1.102541,676.0,675.17,0.29622169]
[1738054269185,0.27200096,675.99,675.17,0.29622169]
[1738054270190,1.102541,676.0,675.17,0.29622169]
[1738054270487,0.27199754,675.99,675.17,0.29622169]
[1738054270686,0.27199754,675.98,675.17,0.29622169]
[1738054270885,0.29575298,676.24,675.17,0.29622169]
[1738054270886,0.27199754,675.97,675.17,0.29622169]
[1738054271089,0.27199754,676.23,675.17,0.29622169]
[1738054271289,0.27199754,676.22,675.17,0.29622169]
[1738054271490,0.27199754,676.21,675.17,0.29622169]
[1738054271686,0.29575298,676.24,675.17,0.29622169]
[1738054271687,0.27199754,676.23,675.17,0.29622169]
[1738054271893,0.27199754,676.2,675.17,0.29622169]
[1738054272091,0.27199754,676.19,675.17,0.29622169]
[1738054272290,0.29575298,676.24,675.17,0.29622169]
[1738054272291,0.27199754,676.23,675.17,0.29622169]
[1738054272488,0.27199754,676.18,675.17,0.29622169]
[1738054272693,0.27199754,676.17,675.17,0.29622169]
[1738054272996,0.27199754,676.16,675.17,0.29622169]
[1738054273191,0.27199754,676.23,675.17,0.29622169]
[1738054273389,0.27199754,676.22,675.17,0.29622169]
[1738054273595,0.27199754,676.21,675.17,0.29622169]
[1738054273995,0.27199754,676.2,675.17,0.29622169]
[1738054274197,0.27199754,676.23,675.17,0.29622169]
[1738054274391,0.27199754,676.22,675.17,0.29622169]
[1738054274597,0.27199754,676.23,675.17,0.29622169]
[1738054274894,0.27199754,676.22,675.17,0.29622169]
[1738054275197,0.27199754,676.21,675.17,0.29622169]
[1738054275396,0.27199754,676.2,675.17,0.29622169]
[1738054275596,0.27199019,676.19,675.17,0.29622169]
[1738054275791,0.27199019,676.18,675.17,0.29622169]
[1738054275996,0.27199019,676.17,675.17,0.29622169]
[1738054276192,0.27199019,676.23,675.17,0.29622169]
[1738054276400,1.10496376,675.95,675.17,0.29622169]
[1738054279198,1.10496376,676.01,675.17,0.29622169]
[1738054279400,0.2719607,676.0,675.17,0.29622169]
[1738054282700,1.10496376,676.01,675.17,0.29622169]
[1738054282901,0.27196165,676.0,675.17,0.29622169]
[1738054285696,1.10496376,676.01,675.17,0.29622169]
[1738054288506,0.29575298,676.24,675.17,0.29622169]
[1738054288507,1.10496376,676.16,675.17,0.29622169]
[1738054288702,0.27189829,676.15,675.17,0.29622169]
[1738054291210,1.10496376,676.16,675.17,0.29622169]
[1738054292109,0.29575298,676.24,675.17,0.29622169]
[1738054307116,0.27195142,676.23,675.17,0.29622169]
[1738054312219,0.29575298,676.24,675.17,0.29622169]
[1738054312220,1.10361561,676.21,675.17,0.29622169]
[1738054312417,0.27195728,676.2,675.17,0.29622169]
[1738054315022,1.10361561,676.16,675.17,0.29622169]
[1738054315221,0.27195728,676.15,675.17,0.29622169]
[1738054317822,1.10361561,676.14,675.17,0.29622169]
[1738054318017,0.27195728,676.13,675.17,0.29622169]
[1738054320626,1.10361561,676.12,675.17,0.29622169]
[1738054320825,0.27195728,676.11,675.17,0.29622169]
[1738054321025,0.27194763,676.1,675.17,0.29622169]
[1738054321222,0.27194763,676.11,675.17,0.29622169]
[1738054323331,1.10361561,676.1,675.17,0.29622169]
[1738054323535,0.27194763,676.09,675.17,0.29622169]
[1738054326136,1.10361561,676.05,675.17,0.29622169]
[1738054326332,0.27194763,676.04,675.17,0.29622169]
[1738054329136,1.10361561,675.98,675.17,0.29622169]
[1738054329330,0.27194763,675.97,675.17,0.29622169]
[1738054329733,0.27199803,675.96,675.17,0.29622169]
[1738054329931,0.27199803,675.95,675.17,0.29622169]
[1738054330132,0.27199803,675.94,675.17,0.29622169]
[1738054330335,0.27199803,675.97,675.17,0.29622169]
[1738054330535,0.27199803,675.96,675.17,0.29622169]
[1738054330937,0.27199803,675.95,675.17,0.29622169]
[1738054331139,0.27199803,675.97,675.17,0.29622169]
[1738054331339,0.27199803,675.96,675.17,0.29622169]
[1738054331540,0.2719987,675.95,675.17,0.29622169]
[1738054331742,0.2719987,675.97,675.17,0.29622169]
[1738054332034,0.2719987,675.96,675.17,0.29622169]
[1738054332240,0.2719987,675.97,675.17,0.29622169]
[1738054332440,0.2719987,675.96,675.17,0.29622169]
[1738054332642,0.2719987,675.99,675.17,0.29622169]
[1738054336243,0.2719987,675.98,675.17,0.29622169]
[1738054336544,0.2719987,675.97,675.17,0.29622169]
[1738054336741,1.10361561,676.04,675.17,0.29622169]
[1738054336938,0.27200035,676.03,675.17,0.29622169]
[1738054338040,0.27200035,676.03,674.9,1.10659279]
[1738054339245,0.27200035,676.03,674.89,1.10659279]
[1738054341049,1.10361561,675.96,674.85,1.10659279]
[1738054341249,0.27200035,675.95,674.85,1.10659279]
[1738054343349,1.10361561,675.98,674.85,1.10659279]
[1738054343350,0.27200035,675.97,674.85,1.10659279]
[1738054343551,0.27200035,675.96,674.85,1.10659279]
[1738054343747,0.27200035,675.97,674.85,1.10659279]
[1738054343942,0.27200035,675.96,674.85,1.10659279]
[1738054344147,1.10361561,675.98,674.85,1.10659279]
[1738054344347,0.27201883,675.97,674.85,1.10659279]
[1738054346050,0.27201669,675.96,674.85,1.10659279]
[1738054346250,1.10361561,675.94,674.85,1.10659279]
[1738054346443,0.27201669,675.93,674.92,1.10659279]
[1738054347747,1.10361561,675.94,674.92,1.10659279]
[1738054347948,0.27199409,675.93,674.92,1.10659279]
[1738054348852,0.27199409,675.93,674.86,1.10659279]
[1738054349052,0.27199409,676.08,674.86,1.10659279]
[1738054349252,1.10361561,676.09,674.86,1.10659279]
[1738054349448,0.27197943,676.08,674.86,1.10659279]
[1738054349647,1.10361561,676.09,674.86,1.10659279]
[1738054349850,1.10361561,676.09,674.87,0.29635337]
[1738054352054,1.10361561,676.1,674.91,1.10659279]
[1738054352252,1.10361561,676.1,674.92,0.29633141]
[1738054355255,1.10361561,676.18,674.92,0.29633141]
[1738054358257,1.10361561,676.11,674.92,0.29633141]
[1738054361052,1.10361561,676.11,674.88,1.10659279]
[1738054361954,1.54528735,676.3,674.23,2.00704657]
[1738054362158,1.54528735,676.3,674.22,2.76749038]
[1738054363259,1.54528735,676.3,673.03,6.29494596]
[1738054363557,1.54528735,676.3,673.04,3.52745558]
[1738054363752,1.54528735,676.3,673.05,2.00704657]
[1738054363951,1.54528735,676.3,673.06,2.00704657]
[1738054364257,1.54528735,676.3,673.07,2.00704657]
[1738054364458,1.54528735,676.3,673.08,2.00704657]
[1738054364756,1.54528735,676.3,673.09,4.77453695]
[1738054364951,1.54528735,676.3,673.1,2.00704657]
[1738054365659,1.10755291,676.07,674.95,1.10840559]
[1738054368359,1.10755291,676.05,674.9,1.10840559]
[1738054371059,1.10755291,676.04,674.93,1.10840559]
[1738054374055,1.10755291,676.03,674.93,1.10840559]
[1738054376462,1.10755291,676.02,674.95,1.10840559]
[1738054379260,1.10755291,675.93,675.0,1.10840559]
[1738054382565,0.77002276,676.29,674.54,1.33008671]
[1738054382566,1.10755291,675.88,675.06,1.10840559]
[1738054386067,1.10755291,675.88,675.1,1.10840559]
[1738054387661,0.77002276,676.29,671.12,3.04364433]
[1738054387867,0.77002276,676.29,673.23,3.53077338]
[1738054388162,0.77002276,676.29,672.25,2.36733416]
[1738054388163,0.77002276,676.29,673.24,3.53077338]
[1738054388367,0.77002276,676.29,673.25,3.53077338]
[1738054388561,0.77002276,676.29,673.26,3.53077338]
[1738054388766,0.77002276,676.29,673.27,3.53077338]
[1738054388967,0.77002276,676.29,673.28,6.30025971]
[1738054389168,0.77002276,676.29,673.29,3.53077338]
[1738054389369,0.77002276,676.29,673.3,2.00891571]
[1738054389569,0.77002276,676.29,673.31,2.00891571]
[1738054389869,0.77002276,676.29,673.32,2.00891571]
[1738054390072,0.77002276,676.29,673.33,2.00891571]
[1738054390286,0.77002276,676.29,673.34,2.00891571]
[1738054390471,0.77002276,676.29,673.35,2.00891571]
[1738054390673,0.77002276,676.29,673.36,4.77840204]
[1738054390971,0.77002276,676.29,673.37,2.00891571]
[1738054391164,0.77002276,676.29,673.38,2.00891571]
[1738054391367,0.77002276,676.29,673.36,2.76948633]
[1738054391368,0.77002276,676.29,673.39,2.00891571]
[1738054391568,0.77002276,676.29,673.36,2.76948633]
[1738054391569,1.10791107,675.87,675.09,1.10950417]
[1738054394268,1.10791107,675.9,675.13,1.10950417]
[1738054397871,1.10791107,675.88,675.11,1.10950417]
[1738054400572,1.10791107,675.94,675.05,1.10950417]
[1738054403280,1.10791107,675.94,675.01,1.10950417]
[1738054406683,1.54531595,676.21,674.83,1.10950417]
[1738054406684,1.10791107,676.06,674.83,1.10950417]
[1738054409874,1.54531595,676.21,674.84,1.10950417]
[1738054409875,1.10791107,675.91,674.84,1.10950417]
[1738054413585,1.10791107,675.93,674.74,1.10950417]
[1738054413784,1.10791107,675.93,674.74,1.40591463]
[1738054416283,1.10791107,675.95,674.74,0.29641046]
[1738054418691,1.10791107,675.89,674.79,1.10950417]
[1738054421693,1.10791107,675.88,674.78,1.10950417]
[1738054424595,1.10791107,675.89,674.77,1.10950417]
[1738054428593,1.10791107,675.9,674.78,1.10950417]
[1738054431998,1.10791107,675.88,674.81,1.10950417]
[1738054434900,1.10791107,675.85,674.84,1.10950417]
[1738054437703,1.10791107,675.83,674.85,1.10950417]
[1738054440101,1.10791107,675.81,674.88,1.10950417]
[1738054444099,1.10791107,675.76,674.94,1.10950417]
[1738054447908,1.10791107,675.8,674.97,1.10950417]
[1738054450506,1.10791107,675.84,674.91,1.10950417]
[1738054453205,1.10791107,675.83,674.9,1.10950417]
[1738054456509,1.10791107,675.83,674.89,1.10950417]
[1738054459708,0.76943282,676.08,674.93,1.10950417]
[1738054459709,1.10791107,675.78,674.93,1.10950417]
[1738054464713,1.10791107,675.76,674.96,1.10950417]
[1738054467615,1.10791107,675.83,674.88,1.10950417]
[1738054470415,1.10791107,675.85,674.86,1.10950417]
[1738054472920,1.10791107,675.86,674.87,1.10950417]
[1738054475825,1.10791107,675.84,674.86,1.10950417]
[1738054478724,1.10791107,675.79,674.9,1.10950417]
[1738054481826,1.10791107,675.75,674.98,1.10950417]
[1738054486027,1.10791107,675.82,674.88,1.10950417]
[1738054490527,1.10791107,675.82,674.75,1.54557904]
[1738054491227,0.2957836,676.17,674.76,0.29640168]
[1738054561583,1.48454664,676.16,674.76,0.29640168]
[1738054561786,0.29579235,676.15,674.76,0.29640168]
[1738054605625,0.27199819,676.14,674.76,0.29640168]
[1738054608027,0.27199819,676.14,674.91,1.1102298]
[1738054608028,1.1102298,675.95,674.91,1.1102298]
[1738054608623,1.1102298,675.95,674.76,0.29640168]
[1738054608624,0.29579235,676.15,674.76,0.29640168]
[1738054608927,0.27199231,676.14,674.76,0.29640168]
[1738054611829,1.10992113,676.01,674.86,1.10992113]
[1738054612032,0.27199231,676.0,674.86,1.10992113]
[1738054612228,1.10992113,676.01,674.86,1.10992113]
[1738054612626,0.29579235,676.15,674.76,0.29640168]
[1738054612831,0.2719903,676.14,674.76,0.29640168]
[1738054617033,1.10979175,676.0,674.93,1.10979175]
[1738054617235,1.10979175,676.0,674.94,0.29632263]
[1738054619835,1.10979175,676.14,675.02,1.10979175]
[1738054620035,0.27192727,676.13,675.03,0.29628312]
[1738054621735,1.10979175,676.14,675.03,0.29628312]
[1738054622937,1.4055841,676.15,675.03,0.29628312]
[1738054623137,0.27192731,676.14,675.03,0.29628312]
[1738054624439,0.29579235,676.15,675.03,0.29628312]
[1738054624635,0.27192848,676.14,675.03,0.29628312]
[1738054624939,0.29579235,676.15,675.03,0.29628312]
[1738054625337,0.27192808,676.14,675.03,0.29628312]
[1738054627034,0.29579235,676.15,675.03,0.29628312]
[1738054627434,1.10642835,676.32,675.03,0.29628312]
[1738054627736,0.27191322,676.31,675.03,0.29628312]
[1738054628340,0.27191322,676.44,675.03,0.29628312]
[1738054628641,0.27191322,676.43,675.03,0.29628312]
[1738054628842,0.27191322,676.42,675.03,0.29628312]
[1738054629041,0.27191322,676.41,675.03,0.29628312]
[1738054629236,0.27191322,676.44,675.03,0.29628312]
[1738054629439,0.27191322,676.43,675.03,0.29628312]
[1738054629636,0.27191322,676.42,675.03,0.29628312]
[1738054629841,0.27191322,676.41,675.03,0.29628312]
[1738054630135,0.27191322,676.4,675.03,0.29628312]
[1738054630443,1.54497863,676.45,675.03,0.29628312]
[1738054630444,1.1058261,676.37,675.03,0.29628312]
[1738054630740,0.27191322,676.36,675.03,0.29628312]
[1738054633536,0.27191322,676.41,675.03,0.29628312]
[1738054633843,0.27191322,676.4,675.03,0.29628312]
[1738054634137,1.1058261,676.42,675.03,0.29628312]
[1738054634138,0.27191322,676.39,675.03,0.29628312]
[1738054634342,0.27191322,676.38,675.03,0.29628312]
[1738054634541,0.27191322,676.37,675.03,0.29628312]
[1738054634843,0.27191322,676.36,675.03,0.29628312]
[1738054635142,0.27191322,676.35,675.03,0.29628312]
[1738054635342,0.27191322,676.34,675.03,0.29628312]
[1738054635544,0.27191322,676.33,675.03,0.29628312]
[1738054635743,1.37773932,676.41,675.03,0.29628312]
[1738054635938,0.27191322,676.4,675.03,0.29628312]
[1738054637444,1.1058261,676.41,675.03,0.29628312]
[1738054637644,0.27191356,676.4,675.03,0.29628312]
[1738054638845,1.37773966,676.4,675.03,0.29628312]
[1738054639140,0.27191356,676.39,675.03,0.29628312]
[1738054639347,0.27191356,676.38,675.03,0.29628312]
[1738054639545,1.1058261,676.4,675.03,0.29628312]
[1738054639745,0.27191323,676.39,675.03,0.29628312]
[1738054639945,0.27191323,676.38,675.03,0.29628312]
[1738054640245,0.27191323,676.37,675.03,0.29628312]
[1738054640450,0.27191323,676.36,675.03,0.29628312]
[1738054640746,0.27191323,676.35,675.03,0.29628312]
[1738054640946,0.27191323,676.34,675.03,0.29628312]
[1738054641141,0.27191323,676.33,675.03,0.29628312]
[1738054641350,1.1058261,676.25,675.06,1.1058261]
[1738054641646,0.27191323,676.24,675.07,0.29626557]
[1738054642242,1.1058261,676.25,675.07,0.29626557]
[1738054642446,0.27191168,676.24,675.07,0.29626557]
[1738054643948,0.27191041,676.23,675.07,0.29626557]
[1738054644149,0.27191041,676.22,675.07,0.29626557]
[1738054644346,0.27191041,676.21,675.07,0.29626557]
[1738054644643,0.27191041,676.2,675.07,0.29626557]
[1738054644947,0.27191041,676.19,675.08,1.1058261]
[1738054645147,0.27191041,676.18,675.08,1.40208728]
[1738054645342,0.27191041,676.17,675.08,1.40208728]
[1738054645547,0.27191041,676.16,675.08,1.40208728]
[1738054645747,0.27191041,676.15,675.08,1.40208728]
[1738054645947,0.27191041,676.14,675.08,1.40208728]
[1738054646248,0.27191041,676.13,675.08,1.40208728]
[1738054646450,1.1058261,676.22,675.09,0.29625679]
[1738054648150,1.1058261,676.22,675.12,1.1058261]
[1738054648551,0.27190543,676.21,675.13,0.29623924]
[1738054651648,1.1058261,676.13,675.2,1.1058261]
[1738054651852,0.27190543,676.12,675.2,1.1058261]
[1738054653751,0.27190543,676.12,675.21,0.29620414]
[1738054653960,1.1058261,676.13,675.21,0.29620414]
[1738054655261,1.1058261,676.14,675.22,1.1058261]
[1738054655558,1.1058261,676.14,675.23,0.29619537]
[1738054658758,1.1058261,676.43,675.27,1.1058261]
[1738054658959,1.1058261,676.43,675.28,0.29617343]
[1738054661762,1.1058261,676.69,675.28,0.29617343]
[1738054661962,0.27180651,676.68,675.28,0.29617343]
[1738054664558,0.27180651,676.67,675.28,0.29617343]
[1738054664762,0.27180651,676.66,675.28,0.29617343]
[1738054664962,0.27180651,676.74,675.28,0.29617343]
[1738054665162,0.27180651,676.73,675.28,0.29617343]
[1738054665364,0.27180651,676.72,675.28,0.29617343]
[1738054665558,0.27180651,676.74,675.28,0.29617343]
[1738054669866,1.54445295,676.75,675.28,0.29617343]
[1738054670067,0.27179707,676.74,675.28,0.29617343]
[1738054674865,1.54445295,676.75,675.28,0.29617343]
[1738054675070,0.27179744,676.74,675.28,0.29617343]
[1738054678072,1.54445295,676.75,675.28,0.29617343]
[1738054678275,1.374814,676.74,675.28,0.29617343]
[1738054678576,0.27179618,676.73,675.28,0.29617343]
[1738054679270,0.27179618,676.72,675.28,0.29617343]
[1738054679479,0.27179618,676.73,675.28,0.29617343]
[1738054679669,0.27179618,676.71,675.28,0.29617343]
[1738054679875,0.2717951,676.7,675.28,0.29617343]
[1738054680175,0.2717951,676.69,675.28,0.29617343]
[1738054680373,0.2717951,676.73,675.28,0.29617343]
[1738054680576,0.2717951,676.72,675.28,0.29617343]
[1738054680771,0.2717951,676.71,675.28,0.29617343]
[1738054681078,1.10301782,676.63,675.28,0.29617343]
[1738054681278,0.2717951,676.62,675.28,0.29617343]
[1738054681577,0.27181251,676.61,675.28,0.29617343]
[1738054681774,0.27181251,676.6,675.28,0.29617343]
[1738054681976,0.27181251,676.62,675.28,0.29617343]
[1738054682176,0.27181251,676.61,675.28,0.29617343]
[1738054682579,0.27181251,676.6,675.28,0.29617343]
[1738054682779,0.27181251,676.59,675.28,0.29617343]
[1738054682974,0.27181251,676.62,675.28,0.29617343]
[1738054684481,0.27181251,676.61,675.28,0.29617343]
[1738054684676,0.27181562,676.6,675.28,0.29617343]
[1738054684882,0.27181562,676.59,675.28,0.29617343]
[1738054685182,0.27181562,676.58,675.28,0.29617343]
[1738054685380,1.10301782,676.65,675.28,0.29617343]
[1738054685381,0.27181562,676.57,675.28,0.29617343]
[1738054685683,0.27181562,676.56,675.28,0.29617343]
[1738054685881,0.27181562,676.55,675.28,0.29617343]
[1738054686082,0.27181562,676.54,675.28,0.29617343]
[1738054686277,1.10301782,676.65,675.28,0.29617343]
[1738054686477,0.27181177,676.64,675.28,0.29617343]
[1738054687281,1.10301782,676.59,675.28,0.29617343]
[1738054687478,0.27181177,676.58,675.28,0.29617343]
[1738054687883,1.10301782,676.59,675.28,0.29617343]
[1738054688183,0.27182327,676.58,675.28,0.29617343]
[1738054688682,0.27182568,676.57,675.28,0.29617343]
[1738054688879,0.27182568,676.58,675.28,0.29617343]
[1738054689081,0.27182568,676.57,675.28,0.29617343]
[1738054689280,0.27182568,676.56,675.28,0.29617343]
[1738054689482,0.27182568,676.55,675.28,0.29617343]
[1738054689678,0.27183085,676.54,675.28,0.29617343]
[1738054689982,0.27183085,676.53,675.28,0.29617343]
[1738054690185,0.27183085,676.52,675.28,0.29617343]
[1738054690485,0.27183085,676.51,675.28,0.29617343]
[1738054690779,0.27183085,676.5,675.28,0.29617343]
[1738054690984,1.10301782,676.54,675.28,0.29617343]
[1738054690985,0.27183085,676.53,675.28,0.29617343]
[1738054691180,0.27183085,676.52,675.28,0.29617343]
[1738054691383,0.27183085,676.51,675.28,0.29617343]
[1738054691585,0.27183085,676.5,675.28,0.29617343]
[1738054691779,0.27183085,676.49,675.28,0.29617343]
[1738054691982,0.27183085,676.53,675.28,0.29617343]
[1738054692179,0.27183085,676.52,675.28,0.29617343]
[1738054692379,0.27183085,676.51,675.28,0.29617343]
[1738054692579,1.10301782,676.45,675.28,0.29617343]
[1738054692786,1.54426448,676.68,675.28,0.29617343]
[1738054692787,0.27183085,676.44,675.28,0.29617343]
[1738054692984,0.27183085,676.43,675.28,0.29617343]
[1738054693184,0.27183085,676.67,675.28,0.29617343]
[1738054693379,0.27183085,676.66,675.28,0.29617343]
[1738054693581,0.27183085,676.65,675.28,0.29617343]
[1738054693781,0.27183085,676.67,675.28,0.29617343]
[1738054694087,0.29556941,676.66,675.28,0.29617343]
[1738054694285,0.27183085,676.65,675.28,0.29617343]
[1738054694485,0.29557815,676.64,675.28,0.29617343]
[1738054694789,0.27183085,676.63,675.28,0.29617343]
[1738054694984,0.29558688,676.62,675.28,0.29617343]
[1738054695180,0.27183085,676.61,675.28,0.29617343]
[1738054695382,0.29559562,676.6,675.28,0.29617343]
[1738054695582,0.27183085,676.59,675.28,0.29617343]
[1738054697982,0.29559562,676.6,675.28,0.29617343]
[1738054698181,0.27187057,676.59,675.28,0.29617343]
[1738054698485,1.81628925,676.59,675.28,0.29617343]
[1738054698680,0.27187057,676.58,675.28,0.29617343]
[1738054699686,0.27187057,676.57,675.28,0.29617343]
[1738054699886,0.27187057,676.56,675.28,0.29617343]
[1738054700083,0.27187057,676.55,675.28,0.29617343]
[1738054700284,0.27187057,676.54,675.28,0.29617343]
[1738054700586,0.27187057,676.53,675.28,0.29617343]
[1738054700784,0.27187057,676.52,675.28,0.29617343]
[1738054701086,0.27187057,676.51,675.28,0.29617343]
[1738054701287,0.27187057,676.5,675.28,0.29617343]
[1738054701483,0.27187057,676.49,675.28,0.29617343]
[1738054701687,2.28978537,676.59,675.28,0.29617343]
[1738054701688,0.27187057,676.48,675.28,0.29617343]
[1738054701883,1.54441868,676.59,675.28,0.29617343]
[1738054701884,0.27187057,676.47,675.28,0.29617343]
[1738054702084,0.27187057,676.46,675.28,0.29617343]
[1738054702286,0.27187057,676.45,675.28,0.29617343]
[1738054702486,0.27187057,676.57,675.28,0.29617343]
[1738054702686,0.27187057,676.56,675.28,0.29617343]
[1738054702989,0.27187057,676.55,675.28,0.29617343]
[1738054703187,0.27187057,676.54,675.28,0.29617343]
[1738054703492,0.27187057,676.53,675.28,0.29617343]
[1738054703687,0.27187057,676.52,675.28,0.29617343]
[1738054703890,0.27187057,676.58,675.28,0.29617343]
[1738054706188,1.54441868,676.59,675.28,0.29617343]
[1738054706388,0.27189152,676.58,675.28,0.29617343]
[1738054713600,1.54441868,676.59,675.28,0.29617343]
[1738054713900,0.27186565,676.58,675.28,0.29617343]
[1738054715000,0.27185832,676.57,675.28,0.29617343]
[1738054715199,0.27185832,676.56,675.28,0.29617343]
[1738054715395,0.27185832,676.55,675.28,0.29617343]
[1738054715600,0.27185832,676.54,675.28,0.29617343]
[1738054715800,0.27185832,676.53,675.28,0.29617343]
[1738054716001,0.27185832,676.58,675.28,0.29617343]
[1738054716200,1.54441868,676.59,675.28,0.29617343]
[1738054716799,0.27186144,676.58,675.28,0.29617343]
[1738054716998,1.54441868,676.59,675.28,0.29617343]
[1738054716999,0.27186144,676.57,675.28,0.29617343]
[1738054717197,0.27186144,676.56,675.28,0.29617343]
[1738054717398,0.27186144,676.55,675.28,0.29617343]
[1738054717601,0.27186144,676.54,675.28,0.29617343]
[1738054717801,0.27186144,676.53,675.28,0.29617343]
[1738054718098,0.2718963,676.52,675.28,0.29617343]
[1738054718298,0.2718963,676.51,675.28,0.29617343]
[1738054718497,0.2718963,676.5,675.28,0.29617343]
[1738054718700,1.54774436,676.52,675.28,0.29617343]
[1738054718701,0.2718963,676.49,675.28,0.29617343]
[1738054718899,0.2718963,676.48,675.28,0.29617343]
[1738054719096,0.2718963,676.47,675.28,0.29617343]
[1738054719301,1.54774436,676.52,675.28,0.29617343]
[1738054719302,0.2718963,676.46,675.28,0.29617343]
[1738054719502,0.2718963,676.45,675.28,0.29617343]
[1738054719697,0.2718963,676.44,675.28,0.29617343]
[1738054719903,0.2718963,676.43,675.28,0.29617343]
[1738054720100,0.2718963,676.42,675.28,0.29617343]
[1738054720402,0.2718963,676.41,675.28,0.29617343]
[1738054720703,0.2718963,676.4,675.28,0.29617343]
[1738054721100,0.2718963,676.39,675.28,0.29617343]
[1738054721301,0.2718963,676.38,675.28,0.29617343]
[1738054721499,0.2718963,676.37,675.28,0.29617343]
[1738054721700,0.2718963,676.36,675.28,0.29617343]
[1738054722005,0.2718963,676.35,675.28,0.29617343]
[1738054722200,0.2718963,676.34,675.28,0.29617343]
[1738054722400,0.2718963,676.33,675.28,0.29617343]
[1738054722604,0.2718963,676.51,675.28,0.29617343]
[1738054722799,0.2718963,676.5,675.28,0.29617343]
[1738054722999,0.2718963,676.49,675.28,0.29617343]
[1738054723198,0.2718963,676.48,675.28,0.29617343]
[1738054723505,0.2718963,676.47,675.28,0.29617343]
[1738054723804,0.2718963,676.46,675.28,0.29617343]
[1738054724003,0.2718963,676.45,675.28,0.29617343]
[1738054724200,0.2718963,676.44,675.28,0.29617343]
[1738054724399,1.54774436,676.52,675.28,0.29617343]
[1738054724400,0.2718963,676.43,675.28,0.29617343]
[1738054724601,0.2718963,676.42,675.28,0.29617343]
[1738054724801,0.2718963,676.41,675.28,0.29617343]
[1738054725105,0.2718963,676.4,675.28,0.29617343]
[1738054725303,0.2718963,676.51,675.28,0.29617343]
[1738054725501,0.2718963,676.5,675.28,0.29617343]
[1738054725706,0.2718963,676.49,675.28,0.29617343]
[1738054725904,1.54774436,676.52,675.28,0.29617343]
[1738054725905,0.2718963,676.48,675.28,0.29617343]
[1738054726104,0.2718963,676.47,675.28,0.29617343]
[1738054726301,0.2718963,676.51,675.28,0.29617343]
[1738054726502,1.10661103,676.29,675.28,0.29617343]
[1738054726701,0.2718963,676.28,675.28,0.29617343]
[1738054728007,1.10661103,676.29,675.28,0.29617343]
[1738054728210,0.27189909,676.28,675.28,0.29617343]
[1738054729110,1.10661103,676.2,675.28,0.29617343]
[1738054729309,0.27189902,676.19,675.28,0.29617343]
[1738054732212,0.27189902,676.18,675.28,0.29617343]
[1738054732511,0.27189902,676.17,675.28,0.29617343]
[1738054732715,1.10661103,676.26,675.28,0.29617343]
[1738054732915,0.27190425,676.25,675.28,0.29617343]
[1738054733815,0.27190425,676.24,675.28,0.29617343]
[1738054734018,0.27190425,676.23,675.28,0.29617343]
[1738054734211,0.27190425,676.25,675.28,0.29617343]
[1738054734415,0.27190425,676.24,675.28,0.29617343]
[1738054734618,0.27190425,676.25,675.28,0.29617343]
[1738054734817,0.27190425,676.24,675.28,0.29617343]
[1738054735019,0.27190425,676.23,675.28,0.29617343]
[1738054735219,0.27190425,676.26,675.28,0.29617343]
[1738054735415,1.10661103,676.27,675.28,0.29617343]
[1738054735416,0.27190425,676.25,675.28,0.29617343]
[1738054735614,0.27190425,676.24,675.28,0.29617343]
[1738054735812,0.27190425,676.26,675.28,0.29617343]
[1738054736016,0.27190425,676.25,675.28,0.29617343]
[1738054736216,0.27190425,676.26,675.28,0.29617343]
[1738054736419,0.27190425,676.25,675.28,0.29617343]
[1738054736719,0.27190425,676.24,675.28,0.29617343]
[1738054736919,0.27190425,676.23,675.28,0.29617343]
[1738054737218,0.27190425,676.22,675.28,0.29617343]
[1738054737418,1.10661103,676.27,675.28,0.29617343]
[1738054737619,0.27190774,676.26,675.28,0.29617343]
[1738054738719,1.10661103,676.23,675.28,0.29617343]
[1738054738915,0.27190774,676.22,675.28,0.29617343]
[1738054740317,0.27190774,676.41,675.28,0.29617343]
[1738054740523,0.27190774,676.4,675.28,0.29617343]
[1738054740720,0.27190774,676.39,675.28,0.29617343]
[1738054740919,0.27190774,676.38,675.28,0.29617343]
[1738054741120,0.27190774,676.37,675.28,0.29617343]